{"text_format":"3","workbook":"xlsx","n_sheets":4,"sheets":["TAPAHTUMAT","KALENTERI","TULOSTETTAVA VERSIO","HALLINTA"],"not_rendered":{"defined_names":18},"read":"whole","date_system":"1900"}

{"sheet":"TAPAHTUMAT","index":0,"n_rows":38,"n_cols":5,"rows_kept":38}
[]
[null,"YHTEISÖN KUUKAUSITTAINEN"]
[null,"TAPAHTUMAKALENTERI"]
[]
[]
[]
[]
[null,"PÄIVÄMÄÄRÄ","PÄIVÄ","KUUKAUSI","TAPAHTUMAN NIMI"]
[null,"2016-07-01",{"$f":"IF(ISBLANK(tblEvents[[#This Row],[PÄIVÄMÄÄRÄ]]),\"\",UPPER(TEXT(tblEvents[[#This Row],[PÄIVÄMÄÄRÄ]],\"ppp\")))","v":"PE"},{"$f":"IF(ISBLANK(tblEvents[[#This Row],[PÄIVÄMÄÄRÄ]]),\"\",UPPER(TEXT(tblEvents[[#This Row],[PÄIVÄMÄÄRÄ]],\"kkk\")))","v":"HEINÄ"},"Puutarhajuhla"]
[null,"2016-07-01",{"$f":"IF(ISBLANK(tblEvents[[#This Row],[PÄIVÄMÄÄRÄ]]),\"\",UPPER(TEXT(tblEvents[[#This Row],[PÄIVÄMÄÄRÄ]],\"ppp\")))","v":"PE"},{"$f":"IF(ISBLANK(tblEvents[[#This Row],[PÄIVÄMÄÄRÄ]]),\"\",UPPER(TEXT(tblEvents[[#This Row],[PÄIVÄMÄÄRÄ]],\"kkk\")))","v":"HEINÄ"},"Kaupunginvaltuusto"]
[null,"2016-07-02",{"$f":"IF(ISBLANK(tblEvents[[#This Row],[PÄIVÄMÄÄRÄ]]),\"\",UPPER(TEXT(tblEvents[[#This Row],[PÄIVÄMÄÄRÄ]],\"ppp\")))","v":"LA"},{"$f":"IF(ISBLANK(tblEvents[[#This Row],[PÄIVÄMÄÄRÄ]]),\"\",UPPER(TEXT(tblEvents[[#This Row],[PÄIVÄMÄÄRÄ]],\"kkk\")))","v":"HEINÄ"},"Puutarhajuhla"]
[null,"2016-07-03",{"$f":"IF(ISBLANK(tblEvents[[#This Row],[PÄIVÄMÄÄRÄ]]),\"\",UPPER(TEXT(tblEvents[[#This Row],[PÄIVÄMÄÄRÄ]],\"ppp\")))","v":"SU"},{"$f":"IF(ISBLANK(tblEvents[[#This Row],[PÄIVÄMÄÄRÄ]]),\"\",UPPER(TEXT(tblEvents[[#This Row],[PÄIVÄMÄÄRÄ]],\"kkk\")))","v":"HEINÄ"},"Elokuvailta puistossa"]
[null,"2016-07-08",{"$f":"IF(ISBLANK(tblEvents[[#This Row],[PÄIVÄMÄÄRÄ]]),\"\",UPPER(TEXT(tblEvents[[#This Row],[PÄIVÄMÄÄRÄ]],\"ppp\")))","v":"PE"},{"$f":"IF(ISBLANK(tblEvents[[#This Row],[PÄIVÄMÄÄRÄ]]),\"\",UPPER(TEXT(tblEvents[[#This Row],[PÄIVÄMÄÄRÄ]],\"kkk\")))","v":"HEINÄ"},"Kaupunginvaltuusto"]
[null,"2016-07-11",{"$f":"IF(ISBLANK(tblEvents[[#This Row],[PÄIVÄMÄÄRÄ]]),\"\",UPPER(TEXT(tblEvents[[#This Row],[PÄIVÄMÄÄRÄ]],\"ppp\")))","v":"MA"},{"$f":"IF(ISBLANK(tblEvents[[#This Row],[PÄIVÄMÄÄRÄ]]),\"\",UPPER(TEXT(tblEvents[[#This Row],[PÄIVÄMÄÄRÄ]],\"kkk\")))","v":"HEINÄ"},"Kauppakamari Lounastilaisuus"]
[null,"2016-07-12",{"$f":"IF(ISBLANK(tblEvents[[#This Row],[PÄIVÄMÄÄRÄ]]),\"\",UPPER(TEXT(tblEvents[[#This Row],[PÄIVÄMÄÄRÄ]],\"ppp\")))","v":"TI"},{"$f":"IF(ISBLANK(tblEvents[[#This Row],[PÄIVÄMÄÄRÄ]]),\"\",UPPER(TEXT(tblEvents[[#This Row],[PÄIVÄMÄÄRÄ]],\"kkk\")))","v":"HEINÄ"},"Antiikkinäyttely"]
[null,"2016-07-14",{"$f":"IF(ISBLANK(tblEvents[[#This Row],[PÄIVÄMÄÄRÄ]]),\"\",UPPER(TEXT(tblEvents[[#This Row],[PÄIVÄMÄÄRÄ]],\"ppp\")))","v":"TO"},{"$f":"IF(ISBLANK(tblEvents[[#This Row],[PÄIVÄMÄÄRÄ]]),\"\",UPPER(TEXT(tblEvents[[#This Row],[PÄIVÄMÄÄRÄ]],\"kkk\")))","v":"HEINÄ"},"Kunnan työpaja"]
[null,"2016-07-15",{"$f":"IF(ISBLANK(tblEvents[[#This Row],[PÄIVÄMÄÄRÄ]]),\"\",UPPER(TEXT(tblEvents[[#This Row],[PÄIVÄMÄÄRÄ]],\"ppp\")))","v":"PE"},{"$f":"IF(ISBLANK(tblEvents[[#This Row],[PÄIVÄMÄÄRÄ]]),\"\",UPPER(TEXT(tblEvents[[#This Row],[PÄIVÄMÄÄRÄ]],\"kkk\")))","v":"HEINÄ"},"Kaupunginvaltuusto"]
[null,"2016-07-19",{"$f":"IF(ISBLANK(tblEvents[[#This Row],[PÄIVÄMÄÄRÄ]]),\"\",UPPER(TEXT(tblEvents[[#This Row],[PÄIVÄMÄÄRÄ]],\"ppp\")))","v":"TI"},{"$f":"IF(ISBLANK(tblEvents[[#This Row],[PÄIVÄMÄÄRÄ]]),\"\",UPPER(TEXT(tblEvents[[#This Row],[PÄIVÄMÄÄRÄ]],\"kkk\")))","v":"HEINÄ"},"Strategisen suunnittelun työpaja"]
[null,"2016-07-20",{"$f":"IF(ISBLANK(tblEvents[[#This Row],[PÄIVÄMÄÄRÄ]]),\"\",UPPER(TEXT(tblEvents[[#This Row],[PÄIVÄMÄÄRÄ]],\"ppp\")))","v":"KE"},{"$f":"IF(ISBLANK(tblEvents[[#This Row],[PÄIVÄMÄÄRÄ]]),\"\",UPPER(TEXT(tblEvents[[#This Row],[PÄIVÄMÄÄRÄ]],\"kkk\")))","v":"HEINÄ"},"Puistosiivous"]
[null,"2016-07-22",{"$f":"IF(ISBLANK(tblEvents[[#This Row],[PÄIVÄMÄÄRÄ]]),\"\",UPPER(TEXT(tblEvents[[#This Row],[PÄIVÄMÄÄRÄ]],\"ppp\")))","v":"PE"},{"$f":"IF(ISBLANK(tblEvents[[#This Row],[PÄIVÄMÄÄRÄ]]),\"\",UPPER(TEXT(tblEvents[[#This Row],[PÄIVÄMÄÄRÄ]],\"kkk\")))","v":"HEINÄ"},"Kaupunginvaltuusto"]
[null,"2016-07-26",{"$f":"IF(ISBLANK(tblEvents[[#This Row],[PÄIVÄMÄÄRÄ]]),\"\",UPPER(TEXT(tblEvents[[#This Row],[PÄIVÄMÄÄRÄ]],\"ppp\")))","v":"TI"},{"$f":"IF(ISBLANK(tblEvents[[#This Row],[PÄIVÄMÄÄRÄ]]),\"\",UPPER(TEXT(tblEvents[[#This Row],[PÄIVÄMÄÄRÄ]],\"kkk\")))","v":"HEINÄ"},"Kiertokävely kaupungilla"]
[null,"2016-07-26",{"$f":"IF(ISBLANK(tblEvents[[#This Row],[PÄIVÄMÄÄRÄ]]),\"\",UPPER(TEXT(tblEvents[[#This Row],[PÄIVÄMÄÄRÄ]],\"ppp\")))","v":"TI"},{"$f":"IF(ISBLANK(tblEvents[[#This Row],[PÄIVÄMÄÄRÄ]]),\"\",UPPER(TEXT(tblEvents[[#This Row],[PÄIVÄMÄÄRÄ]],\"kkk\")))","v":"HEINÄ"},"Pubikierros"]
[null,"2016-07-29",{"$f":"IF(ISBLANK(tblEvents[[#This Row],[PÄIVÄMÄÄRÄ]]),\"\",UPPER(TEXT(tblEvents[[#This Row],[PÄIVÄMÄÄRÄ]],\"ppp\")))","v":"PE"},{"$f":"IF(ISBLANK(tblEvents[[#This Row],[PÄIVÄMÄÄRÄ]]),\"\",UPPER(TEXT(tblEvents[[#This Row],[PÄIVÄMÄÄRÄ]],\"kkk\")))","v":"HEINÄ"},"Kaupunginvaltuusto"]
[null,"2016-08-05",{"$f":"IF(ISBLANK(tblEvents[[#This Row],[PÄIVÄMÄÄRÄ]]),\"\",UPPER(TEXT(tblEvents[[#This Row],[PÄIVÄMÄÄRÄ]],\"ppp\")))","v":"PE"},{"$f":"IF(ISBLANK(tblEvents[[#This Row],[PÄIVÄMÄÄRÄ]]),\"\",UPPER(TEXT(tblEvents[[#This Row],[PÄIVÄMÄÄRÄ]],\"kkk\")))","v":"ELO"},"Kaupunginvaltuusto"]
[null,"2016-08-10",{"$f":"IF(ISBLANK(tblEvents[[#This Row],[PÄIVÄMÄÄRÄ]]),\"\",UPPER(TEXT(tblEvents[[#This Row],[PÄIVÄMÄÄRÄ]],\"ppp\")))","v":"KE"},{"$f":"IF(ISBLANK(tblEvents[[#This Row],[PÄIVÄMÄÄRÄ]]),\"\",UPPER(TEXT(tblEvents[[#This Row],[PÄIVÄMÄÄRÄ]],\"kkk\")))","v":"ELO"},"Puistosiivous"]
[null,"2016-08-12",{"$f":"IF(ISBLANK(tblEvents[[#This Row],[PÄIVÄMÄÄRÄ]]),\"\",UPPER(TEXT(tblEvents[[#This Row],[PÄIVÄMÄÄRÄ]],\"ppp\")))","v":"PE"},{"$f":"IF(ISBLANK(tblEvents[[#This Row],[PÄIVÄMÄÄRÄ]]),\"\",UPPER(TEXT(tblEvents[[#This Row],[PÄIVÄMÄÄRÄ]],\"kkk\")))","v":"ELO"},"Kaupunginvaltuusto"]
[null,"2016-08-13",{"$f":"IF(ISBLANK(tblEvents[[#This Row],[PÄIVÄMÄÄRÄ]]),\"\",UPPER(TEXT(tblEvents[[#This Row],[PÄIVÄMÄÄRÄ]],\"ppp\")))","v":"LA"},{"$f":"IF(ISBLANK(tblEvents[[#This Row],[PÄIVÄMÄÄRÄ]]),\"\",UPPER(TEXT(tblEvents[[#This Row],[PÄIVÄMÄÄRÄ]],\"kkk\")))","v":"ELO"},"Puutarhajuhla"]
[null,"2016-09-01",{"$f":"IF(ISBLANK(tblEvents[[#This Row],[PÄIVÄMÄÄRÄ]]),\"\",UPPER(TEXT(tblEvents[[#This Row],[PÄIVÄMÄÄRÄ]],\"ppp\")))","v":"TO"},{"$f":"IF(ISBLANK(tblEvents[[#This Row],[PÄIVÄMÄÄRÄ]]),\"\",UPPER(TEXT(tblEvents[[#This Row],[PÄIVÄMÄÄRÄ]],\"kkk\")))","v":"SYYS"},"Budjettikokous"]
[null,"2016-10-01",{"$f":"IF(ISBLANK(tblEvents[[#This Row],[PÄIVÄMÄÄRÄ]]),\"\",UPPER(TEXT(tblEvents[[#This Row],[PÄIVÄMÄÄRÄ]],\"ppp\")))","v":"LA"},{"$f":"IF(ISBLANK(tblEvents[[#This Row],[PÄIVÄMÄÄRÄ]]),\"\",UPPER(TEXT(tblEvents[[#This Row],[PÄIVÄMÄÄRÄ]],\"kkk\")))","v":"LOKA"},"Budjettikokous"]
[null,"2016-11-03",{"$f":"IF(ISBLANK(tblEvents[[#This Row],[PÄIVÄMÄÄRÄ]]),\"\",UPPER(TEXT(tblEvents[[#This Row],[PÄIVÄMÄÄRÄ]],\"ppp\")))","v":"TO"},{"$f":"IF(ISBLANK(tblEvents[[#This Row],[PÄIVÄMÄÄRÄ]]),\"\",UPPER(TEXT(tblEvents[[#This Row],[PÄIVÄMÄÄRÄ]],\"kkk\")))","v":"MARRAS"},"Budjettikokous"]
[null,"2016-12-01",{"$f":"IF(ISBLANK(tblEvents[[#This Row],[PÄIVÄMÄÄRÄ]]),\"\",UPPER(TEXT(tblEvents[[#This Row],[PÄIVÄMÄÄRÄ]],\"ppp\")))","v":"TO"},{"$f":"IF(ISBLANK(tblEvents[[#This Row],[PÄIVÄMÄÄRÄ]]),\"\",UPPER(TEXT(tblEvents[[#This Row],[PÄIVÄMÄÄRÄ]],\"kkk\")))","v":"JOULU"},"Budjettikokous"]
[null,"2017-01-01",{"$f":"IF(ISBLANK(tblEvents[[#This Row],[PÄIVÄMÄÄRÄ]]),\"\",UPPER(TEXT(tblEvents[[#This Row],[PÄIVÄMÄÄRÄ]],\"ppp\")))","v":"SU"},{"$f":"IF(ISBLANK(tblEvents[[#This Row],[PÄIVÄMÄÄRÄ]]),\"\",UPPER(TEXT(tblEvents[[#This Row],[PÄIVÄMÄÄRÄ]],\"kkk\")))","v":"TAMMI"},"Budjettikokous"]
[null,"2017-02-02",{"$f":"IF(ISBLANK(tblEvents[[#This Row],[PÄIVÄMÄÄRÄ]]),\"\",UPPER(TEXT(tblEvents[[#This Row],[PÄIVÄMÄÄRÄ]],\"ppp\")))","v":"TO"},{"$f":"IF(ISBLANK(tblEvents[[#This Row],[PÄIVÄMÄÄRÄ]]),\"\",UPPER(TEXT(tblEvents[[#This Row],[PÄIVÄMÄÄRÄ]],\"kkk\")))","v":"HELMI"},"Budjettikokous"]
[null,"2017-03-02",{"$f":"IF(ISBLANK(tblEvents[[#This Row],[PÄIVÄMÄÄRÄ]]),\"\",UPPER(TEXT(tblEvents[[#This Row],[PÄIVÄMÄÄRÄ]],\"ppp\")))","v":"TO"},{"$f":"IF(ISBLANK(tblEvents[[#This Row],[PÄIVÄMÄÄRÄ]]),\"\",UPPER(TEXT(tblEvents[[#This Row],[PÄIVÄMÄÄRÄ]],\"kkk\")))","v":"MAALIS"},"Budjettikokous"]
[null,"2017-04-01",{"$f":"IF(ISBLANK(tblEvents[[#This Row],[PÄIVÄMÄÄRÄ]]),\"\",UPPER(TEXT(tblEvents[[#This Row],[PÄIVÄMÄÄRÄ]],\"ppp\")))","v":"LA"},{"$f":"IF(ISBLANK(tblEvents[[#This Row],[PÄIVÄMÄÄRÄ]]),\"\",UPPER(TEXT(tblEvents[[#This Row],[PÄIVÄMÄÄRÄ]],\"kkk\")))","v":"HUHTI"},"Budjettikokous"]
[null,"2017-05-01",{"$f":"IF(ISBLANK(tblEvents[[#This Row],[PÄIVÄMÄÄRÄ]]),\"\",UPPER(TEXT(tblEvents[[#This Row],[PÄIVÄMÄÄRÄ]],\"ppp\")))","v":"MA"},{"$f":"IF(ISBLANK(tblEvents[[#This Row],[PÄIVÄMÄÄRÄ]]),\"\",UPPER(TEXT(tblEvents[[#This Row],[PÄIVÄMÄÄRÄ]],\"kkk\")))","v":"TOUKO"},"Budjettikokous"]
[null,"2017-06-01",{"$f":"IF(ISBLANK(tblEvents[[#This Row],[PÄIVÄMÄÄRÄ]]),\"\",UPPER(TEXT(tblEvents[[#This Row],[PÄIVÄMÄÄRÄ]],\"ppp\")))","v":"TO"},{"$f":"IF(ISBLANK(tblEvents[[#This Row],[PÄIVÄMÄÄRÄ]]),\"\",UPPER(TEXT(tblEvents[[#This Row],[PÄIVÄMÄÄRÄ]],\"kkk\")))","v":"KESÄ"},"Budjettikokous"]
[null,"2017-06-02",{"$f":"IF(ISBLANK(tblEvents[[#This Row],[PÄIVÄMÄÄRÄ]]),\"\",UPPER(TEXT(tblEvents[[#This Row],[PÄIVÄMÄÄRÄ]],\"ppp\")))","v":"PE"},{"$f":"IF(ISBLANK(tblEvents[[#This Row],[PÄIVÄMÄÄRÄ]]),\"\",UPPER(TEXT(tblEvents[[#This Row],[PÄIVÄMÄÄRÄ]],\"kkk\")))","v":"KESÄ"},"Kaupunginvaltuusto"]

{"sheet":"KALENTERI","index":1,"n_rows":35,"n_cols":21,"rows_kept":35,"merged":[[1,5,1,11],[30,8,34,20]]}
[]
[null,null,2016,null,null,{"$f":"LOOKUP(MonthNum,tblMonths[NUMERO],tblMonths[KUUKAUSI])","v":"HEINÄKUU"}]
[null,null,7,null,null,{"$f":"DATE(ViewYear,MonthNum,1)","v":"2016-07-01"},null,null,{"$f":"WEEKDAY(StartDate)","v":6}]
[null,null,"MA",null,null,"TI",null,null,"KE",null,null,"TO",null,null,"PE",null,null,"LA",null,null,"SU"]
[]
[null,null,{"$f":"StartDate-(WEEKDAY(StartDate,2))+{0;1;2;3;4;5}*7 +{2,3,4,5,6,7,1}-3+COLUMN(B1)","v":"2016-06-27"},null,null,{"$f":"StartDate-(WEEKDAY(StartDate,2))+{0;1;2;3;4;5}*7 +{2,3,4,5,6,7,1}-3+COLUMN(C1)","v":"2016-06-28"},null,null,{"$f":"StartDate-(WEEKDAY(StartDate,2))+{0;1;2;3;4;5}*7 +{2,3,4,5,6,7,1}-3+COLUMN(D1)","v":"2016-06-29"},null,null,{"$f":"StartDate-(WEEKDAY(StartDate,2))+{0;1;2;3;4;5}*7 +{2,3,4,5,6,7,1}-3+COLUMN(E1)","v":"2016-06-30"},null,null,{"$f":"StartDate-(WEEKDAY(StartDate,2))+{0;1;2;3;4;5}*7 +{2,3,4,5,6,7,1}-3+COLUMN(F1)","v":"2016-07-01"},null,null,{"$f":"StartDate-(WEEKDAY(StartDate,2))+{0;1;2;3;4;5}*7 +{2,3,4,5,6,7,1}-3+COLUMN(G1)","v":"2016-07-02"},null,null,{"$f":"StartDate-(WEEKDAY(StartDate,2))+{0;1;2;3;4;5}*7 +{2,3,4,5,6,7,1}-3+COLUMN(H1)","v":"2016-07-03"}]
[null,null,{"$f":"IFERROR(INDEX(tblEvents[],SMALL(IF(Dates=C$6,ROW(Dates)),ROW(1:1))-TableRowStart,4),\"\")","v":""},null,null,{"$f":"IFERROR(INDEX(tblEvents[],SMALL(IF(Dates=F$6,ROW(Dates)),ROW(1:1))-TableRowStart,4),\"\")","v":""},null,null,{"$f":"IFERROR(INDEX(tblEvents[],SMALL(IF(Dates=I$6,ROW(Dates)),ROW(1:1))-TableRowStart,4),\"\")","v":""},null,null,{"$f":"IFERROR(INDEX(tblEvents[],SMALL(IF(Dates=L$6,ROW(Dates)),ROW(1:1))-TableRowStart,4),\"\")","v":""},null,null,{"$f":"IFERROR(INDEX(tblEvents[],SMALL(IF(Dates=O$6,ROW(Dates)),ROW(1:1))-TableRowStart,4),\"\")","v":"Puutarhajuhla"},null,null,{"$f":"IFERROR(INDEX(tblEvents[],SMALL(IF(Dates=R$6,ROW(Dates)),ROW(1:1))-TableRowStart,4),\"\")","v":"Puutarhajuhla"},null,null,{"$f":"IFERROR(INDEX(tblEvents[],SMALL(IF(Dates=U$6,ROW(Dates)),ROW(1:1))-TableRowStart,4),\"\")","v":"Elokuvailta puistossa"}]
[null,null,{"$f":"IFERROR(INDEX(tblEvents[],SMALL(IF(Dates=C$6,ROW(Dates)),ROW(2:2))-TableRowStart,4),\"\")","v":""},null,null,{"$f":"IFERROR(INDEX(tblEvents[],SMALL(IF(Dates=F$6,ROW(Dates)),ROW(2:2))-TableRowStart,4),\"\")","v":""},null,null,{"$f":"IFERROR(INDEX(tblEvents[],SMALL(IF(Dates=I$6,ROW(Dates)),ROW(2:2))-TableRowStart,4),\"\")","v":""},null,null,{"$f":"IFERROR(INDEX(tblEvents[],SMALL(IF(Dates=L$6,ROW(Dates)),ROW(2:2))-TableRowStart,4),\"\")","v":""},null,null,{"$f":"IFERROR(INDEX(tblEvents[],SMALL(IF(Dates=O$6,ROW(Dates)),ROW(2:2))-TableRowStart,4),\"\")","v":"Kaupunginvaltuusto"},null,null,{"$f":"IFERROR(INDEX(tblEvents[],SMALL(IF(Dates=R$6,ROW(Dates)),ROW(2:2))-TableRowStart,4),\"\")","v":""},null,null,{"$f":"IFERROR(INDEX(tblEvents[],SMALL(IF(Dates=U$6,ROW(Dates)),ROW(2:2))-TableRowStart,4),\"\")","v":""}]
[null,null,{"$f":"IFERROR(INDEX(tblEvents[],SMALL(IF(Dates=C$6,ROW(Dates)),ROW(3:3))-TableRowStart,4),\"\")","v":""},null,null,{"$f":"IFERROR(INDEX(tblEvents[],SMALL(IF(Dates=F$6,ROW(Dates)),ROW(3:3))-TableRowStart,4),\"\")","v":""},null,null,{"$f":"IFERROR(INDEX(tblEvents[],SMALL(IF(Dates=I$6,ROW(Dates)),ROW(3:3))-TableRowStart,4),\"\")","v":""},null,null,{"$f":"IFERROR(INDEX(tblEvents[],SMALL(IF(Dates=L$6,ROW(Dates)),ROW(3:3))-TableRowStart,4),\"\")","v":""},null,null,{"$f":"IFERROR(INDEX(tblEvents[],SMALL(IF(Dates=O$6,ROW(Dates)),ROW(3:3))-TableRowStart,4),\"\")","v":""},null,null,{"$f":"IFERROR(INDEX(tblEvents[],SMALL(IF(Dates=R$6,ROW(Dates)),ROW(3:3))-TableRowStart,4),\"\")","v":""},null,null,{"$f":"IFERROR(INDEX(tblEvents[],SMALL(IF(Dates=U$6,ROW(Dates)),ROW(3:3))-TableRowStart,4),\"\")","v":""}]
[null,null,{"$f":"IFERROR(INDEX(tblEvents[],SMALL(IF(Dates=C$6,ROW(Dates)),ROW(#REF!))-TableRowStart,4),\"\")","v":""},null,null,{"$f":"IFERROR(INDEX(tblEvents[],SMALL(IF(Dates=F$6,ROW(Dates)),ROW(#REF!))-TableRowStart,4),\"\")","v":""},null,null,{"$f":"IFERROR(INDEX(tblEvents[],SMALL(IF(Dates=I$6,ROW(Dates)),ROW(#REF!))-TableRowStart,4),\"\")","v":""},null,null,{"$f":"IFERROR(INDEX(tblEvents[],SMALL(IF(Dates=L$6,ROW(Dates)),ROW(#REF!))-TableRowStart,4),\"\")","v":""},null,null,{"$f":"IFERROR(INDEX(tblEvents[],SMALL(IF(Dates=O$6,ROW(Dates)),ROW(#REF!))-TableRowStart,4),\"\")","v":""},null,null,{"$f":"IFERROR(INDEX(tblEvents[],SMALL(IF(Dates=R$6,ROW(Dates)),ROW(#REF!))-TableRowStart,4),\"\")","v":""},null,null,{"$f":"IFERROR(INDEX(tblEvents[],SMALL(IF(Dates=U$6,ROW(Dates)),ROW(#REF!))-TableRowStart,4),\"\")","v":""}]
[null,null,{"$f":"U6+1","v":"2016-07-04"},null,null,{"$f":"C11+1","v":"2016-07-05"},null,null,{"$f":"F11+1","v":"2016-07-06"},null,null,{"$f":"I11+1","v":"2016-07-07"},null,null,{"$f":"L11+1","v":"2016-07-08"},null,null,{"$f":"O11+1","v":"2016-07-09"},null,null,{"$f":"R11+1","v":"2016-07-10"}]
[null,null,{"$f":"IFERROR(INDEX(tblEvents[],SMALL(IF(Dates=C$11,ROW(Dates)),ROW(1:1))-TableRowStart,4),\"\")","v":""},null,null,{"$f":"IFERROR(INDEX(tblEvents[],SMALL(IF(Dates=F$11,ROW(Dates)),ROW(1:1))-TableRowStart,4),\"\")","v":""},null,null,{"$f":"IFERROR(INDEX(tblEvents[],SMALL(IF(Dates=I$11,ROW(Dates)),ROW(1:1))-TableRowStart,4),\"\")","v":""},null,null,{"$f":"IFERROR(INDEX(tblEvents[],SMALL(IF(Dates=L$11,ROW(Dates)),ROW(1:1))-TableRowStart,4),\"\")","v":""},null,null,{"$f":"IFERROR(INDEX(tblEvents[],SMALL(IF(Dates=O$11,ROW(Dates)),ROW(1:1))-TableRowStart,4),\"\")","v":"Kaupunginvaltuusto"},null,null,{"$f":"IFERROR(INDEX(tblEvents[],SMALL(IF(Dates=R$11,ROW(Dates)),ROW(1:1))-TableRowStart,4),\"\")","v":""},null,null,{"$f":"IFERROR(INDEX(tblEvents[],SMALL(IF(Dates=U$11,ROW(Dates)),ROW(1:1))-TableRowStart,4),\"\")","v":""}]
[null,null,{"$f":"IFERROR(INDEX(tblEvents[],SMALL(IF(Dates=C$11,ROW(Dates)),ROW(2:2))-TableRowStart,4),\"\")","v":""},null,null,{"$f":"IFERROR(INDEX(tblEvents[],SMALL(IF(Dates=F$11,ROW(Dates)),ROW(2:2))-TableRowStart,4),\"\")","v":""},null,null,{"$f":"IFERROR(INDEX(tblEvents[],SMALL(IF(Dates=I$11,ROW(Dates)),ROW(2:2))-TableRowStart,4),\"\")","v":""},null,null,{"$f":"IFERROR(INDEX(tblEvents[],SMALL(IF(Dates=L$11,ROW(Dates)),ROW(2:2))-TableRowStart,4),\"\")","v":""},null,null,{"$f":"IFERROR(INDEX(tblEvents[],SMALL(IF(Dates=O$11,ROW(Dates)),ROW(2:2))-TableRowStart,4),\"\")","v":""},null,null,{"$f":"IFERROR(INDEX(tblEvents[],SMALL(IF(Dates=R$11,ROW(Dates)),ROW(2:2))-TableRowStart,4),\"\")","v":""},null,null,{"$f":"IFERROR(INDEX(tblEvents[],SMALL(IF(Dates=U$11,ROW(Dates)),ROW(2:2))-TableRowStart,4),\"\")","v":""}]
[null,null,{"$f":"IFERROR(INDEX(tblEvents[],SMALL(IF(Dates=C$11,ROW(Dates)),ROW(3:3))-TableRowStart,4),\"\")","v":""},null,null,{"$f":"IFERROR(INDEX(tblEvents[],SMALL(IF(Dates=F$11,ROW(Dates)),ROW(3:3))-TableRowStart,4),\"\")","v":""},null,null,{"$f":"IFERROR(INDEX(tblEvents[],SMALL(IF(Dates=I$11,ROW(Dates)),ROW(3:3))-TableRowStart,4),\"\")","v":""},null,null,{"$f":"IFERROR(INDEX(tblEvents[],SMALL(IF(Dates=L$11,ROW(Dates)),ROW(3:3))-TableRowStart,4),\"\")","v":""},null,null,{"$f":"IFERROR(INDEX(tblEvents[],SMALL(IF(Dates=O$11,ROW(Dates)),ROW(3:3))-TableRowStart,4),\"\")","v":""},null,null,{"$f":"IFERROR(INDEX(tblEvents[],SMALL(IF(Dates=R$11,ROW(Dates)),ROW(3:3))-TableRowStart,4),\"\")","v":""},null,null,{"$f":"IFERROR(INDEX(tblEvents[],SMALL(IF(Dates=U$11,ROW(Dates)),ROW(3:3))-TableRowStart,4),\"\")","v":""}]
[null,null,{"$f":"IFERROR(INDEX(tblEvents[],SMALL(IF(Dates=C$11,ROW(Dates)),ROW(#REF!))-TableRowStart,4),\"\")","v":""},null,null,{"$f":"IFERROR(INDEX(tblEvents[],SMALL(IF(Dates=F$11,ROW(Dates)),ROW(#REF!))-TableRowStart,4),\"\")","v":""},null,null,{"$f":"IFERROR(INDEX(tblEvents[],SMALL(IF(Dates=I$11,ROW(Dates)),ROW(#REF!))-TableRowStart,4),\"\")","v":""},null,null,{"$f":"IFERROR(INDEX(tblEvents[],SMALL(IF(Dates=L$11,ROW(Dates)),ROW(#REF!))-TableRowStart,4),\"\")","v":""},null,null,{"$f":"IFERROR(INDEX(tblEvents[],SMALL(IF(Dates=O$11,ROW(Dates)),ROW(#REF!))-TableRowStart,4),\"\")","v":""},null,null,{"$f":"IFERROR(INDEX(tblEvents[],SMALL(IF(Dates=R$11,ROW(Dates)),ROW(#REF!))-TableRowStart,4),\"\")","v":""},null,null,{"$f":"IFERROR(INDEX(tblEvents[],SMALL(IF(Dates=U$11,ROW(Dates)),ROW(#REF!))-TableRowStart,4),\"\")","v":""}]
[null,null,{"$f":"U11+1","v":"2016-07-11"},null,null,{"$f":"C16+1","v":"2016-07-12"},null,null,{"$f":"F16+1","v":"2016-07-13"},null,null,{"$f":"I16+1","v":"2016-07-14"},null,null,{"$f":"L16+1","v":"2016-07-15"},null,null,{"$f":"O16+1","v":"2016-07-16"},null,null,{"$f":"R16+1","v":"2016-07-17"}]
[null,null,{"$f":"IFERROR(INDEX(tblEvents[],SMALL(IF(Dates=C$16,ROW(Dates)),ROW(1:1))-TableRowStart,4),\"\")","v":"Kauppakamari Lounastilaisuus"},null,null,{"$f":"IFERROR(INDEX(tblEvents[],SMALL(IF(Dates=F$16,ROW(Dates)),ROW(1:1))-TableRowStart,4),\"\")","v":"Antiikkinäyttely"},null,null,{"$f":"IFERROR(INDEX(tblEvents[],SMALL(IF(Dates=I$16,ROW(Dates)),ROW(1:1))-TableRowStart,4),\"\")","v":""},null,null,{"$f":"IFERROR(INDEX(tblEvents[],SMALL(IF(Dates=L$16,ROW(Dates)),ROW(1:1))-TableRowStart,4),\"\")","v":"Kunnan työpaja"},null,null,{"$f":"IFERROR(INDEX(tblEvents[],SMALL(IF(Dates=O$16,ROW(Dates)),ROW(1:1))-TableRowStart,4),\"\")","v":"Kaupunginvaltuusto"},null,null,{"$f":"IFERROR(INDEX(tblEvents[],SMALL(IF(Dates=R$16,ROW(Dates)),ROW(1:1))-TableRowStart,4),\"\")","v":""},null,null,{"$f":"IFERROR(INDEX(tblEvents[],SMALL(IF(Dates=U$16,ROW(Dates)),ROW(1:1))-TableRowStart,4),\"\")","v":""}]
[null,null,{"$f":"IFERROR(INDEX(tblEvents[],SMALL(IF(Dates=C$16,ROW(Dates)),ROW(2:2))-TableRowStart,4),\"\")","v":""},null,null,{"$f":"IFERROR(INDEX(tblEvents[],SMALL(IF(Dates=F$16,ROW(Dates)),ROW(2:2))-TableRowStart,4),\"\")","v":""},null,null,{"$f":"IFERROR(INDEX(tblEvents[],SMALL(IF(Dates=I$16,ROW(Dates)),ROW(2:2))-TableRowStart,4),\"\")","v":""},null,null,{"$f":"IFERROR(INDEX(tblEvents[],SMALL(IF(Dates=L$16,ROW(Dates)),ROW(2:2))-TableRowStart,4),\"\")","v":""},null,null,{"$f":"IFERROR(INDEX(tblEvents[],SMALL(IF(Dates=O$16,ROW(Dates)),ROW(2:2))-TableRowStart,4),\"\")","v":""},null,null,{"$f":"IFERROR(INDEX(tblEvents[],SMALL(IF(Dates=R$16,ROW(Dates)),ROW(2:2))-TableRowStart,4),\"\")","v":""},null,null,{"$f":"IFERROR(INDEX(tblEvents[],SMALL(IF(Dates=U$16,ROW(Dates)),ROW(2:2))-TableRowStart,4),\"\")","v":""}]
[null,null,{"$f":"IFERROR(INDEX(tblEvents[],SMALL(IF(Dates=C$16,ROW(Dates)),ROW(3:3))-TableRowStart,4),\"\")","v":""},null,null,{"$f":"IFERROR(INDEX(tblEvents[],SMALL(IF(Dates=F$16,ROW(Dates)),ROW(3:3))-TableRowStart,4),\"\")","v":""},null,null,{"$f":"IFERROR(INDEX(tblEvents[],SMALL(IF(Dates=I$16,ROW(Dates)),ROW(3:3))-TableRowStart,4),\"\")","v":""},null,null,{"$f":"IFERROR(INDEX(tblEvents[],SMALL(IF(Dates=L$16,ROW(Dates)),ROW(3:3))-TableRowStart,4),\"\")","v":""},null,null,{"$f":"IFERROR(INDEX(tblEvents[],SMALL(IF(Dates=O$16,ROW(Dates)),ROW(3:3))-TableRowStart,4),\"\")","v":""},null,null,{"$f":"IFERROR(INDEX(tblEvents[],SMALL(IF(Dates=R$16,ROW(Dates)),ROW(3:3))-TableRowStart,4),\"\")","v":""},null,null,{"$f":"IFERROR(INDEX(tblEvents[],SMALL(IF(Dates=U$16,ROW(Dates)),ROW(3:3))-TableRowStart,4),\"\")","v":""}]
[null,null,{"$f":"IFERROR(INDEX(tblEvents[],SMALL(IF(Dates=C$16,ROW(Dates)),ROW(#REF!))-TableRowStart,4),\"\")","v":""},null,null,{"$f":"IFERROR(INDEX(tblEvents[],SMALL(IF(Dates=F$16,ROW(Dates)),ROW(#REF!))-TableRowStart,4),\"\")","v":""},null,null,{"$f":"IFERROR(INDEX(tblEvents[],SMALL(IF(Dates=I$16,ROW(Dates)),ROW(#REF!))-TableRowStart,4),\"\")","v":""},null,null,{"$f":"IFERROR(INDEX(tblEvents[],SMALL(IF(Dates=L$16,ROW(Dates)),ROW(#REF!))-TableRowStart,4),\"\")","v":""},null,null,{"$f":"IFERROR(INDEX(tblEvents[],SMALL(IF(Dates=O$16,ROW(Dates)),ROW(#REF!))-TableRowStart,4),\"\")","v":""},null,null,{"$f":"IFERROR(INDEX(tblEvents[],SMALL(IF(Dates=R$16,ROW(Dates)),ROW(#REF!))-TableRowStart,4),\"\")","v":""},null,null,{"$f":"IFERROR(INDEX(tblEvents[],SMALL(IF(Dates=U$16,ROW(Dates)),ROW(#REF!))-TableRowStart,4),\"\")","v":""}]
[null,null,{"$f":"U16+1","v":"2016-07-18"},null,null,{"$f":"C21+1","v":"2016-07-19"},null,null,{"$f":"F21+1","v":"2016-07-20"},null,null,{"$f":"I21+1","v":"2016-07-21"},null,null,{"$f":"L21+1","v":"2016-07-22"},null,null,{"$f":"O21+1","v":"2016-07-23"},null,null,{"$f":"R21+1","v":"2016-07-24"}]
[null,null,{"$f":"IFERROR(INDEX(tblEvents[],SMALL(IF(Dates=C$21,ROW(Dates)),ROW(1:1))-TableRowStart,4),\"\")","v":""},null,null,{"$f":"IFERROR(INDEX(tblEvents[],SMALL(IF(Dates=F$21,ROW(Dates)),ROW(1:1))-TableRowStart,4),\"\")","v":"Strategisen suunnittelun työpaja"},null,null,{"$f":"IFERROR(INDEX(tblEvents[],SMALL(IF(Dates=I$21,ROW(Dates)),ROW(1:1))-TableRowStart,4),\"\")","v":"Puistosiivous"},null,null,{"$f":"IFERROR(INDEX(tblEvents[],SMALL(IF(Dates=L$21,ROW(Dates)),ROW(1:1))-TableRowStart,4),\"\")","v":""},null,null,{"$f":"IFERROR(INDEX(tblEvents[],SMALL(IF(Dates=O$21,ROW(Dates)),ROW(1:1))-TableRowStart,4),\"\")","v":"Kaupunginvaltuusto"},null,null,{"$f":"IFERROR(INDEX(tblEvents[],SMALL(IF(Dates=R$21,ROW(Dates)),ROW(1:1))-TableRowStart,4),\"\")","v":""},null,null,{"$f":"IFERROR(INDEX(tblEvents[],SMALL(IF(Dates=U$21,ROW(Dates)),ROW(1:1))-TableRowStart,4),\"\")","v":""}]
[null,null,{"$f":"IFERROR(INDEX(tblEvents[],SMALL(IF(Dates=C$21,ROW(Dates)),ROW(2:2))-TableRowStart,4),\"\")","v":""},null,null,{"$f":"IFERROR(INDEX(tblEvents[],SMALL(IF(Dates=F$21,ROW(Dates)),ROW(2:2))-TableRowStart,4),\"\")","v":""},null,null,{"$f":"IFERROR(INDEX(tblEvents[],SMALL(IF(Dates=I$21,ROW(Dates)),ROW(2:2))-TableRowStart,4),\"\")","v":""},null,null,{"$f":"IFERROR(INDEX(tblEvents[],SMALL(IF(Dates=L$21,ROW(Dates)),ROW(2:2))-TableRowStart,4),\"\")","v":""},null,null,{"$f":"IFERROR(INDEX(tblEvents[],SMALL(IF(Dates=O$21,ROW(Dates)),ROW(2:2))-TableRowStart,4),\"\")","v":""},null,null,{"$f":"IFERROR(INDEX(tblEvents[],SMALL(IF(Dates=R$21,ROW(Dates)),ROW(2:2))-TableRowStart,4),\"\")","v":""},null,null,{"$f":"IFERROR(INDEX(tblEvents[],SMALL(IF(Dates=U$21,ROW(Dates)),ROW(2:2))-TableRowStart,4),\"\")","v":""}]
[null,null,{"$f":"IFERROR(INDEX(tblEvents[],SMALL(IF(Dates=C$21,ROW(Dates)),ROW(3:3))-TableRowStart,4),\"\")","v":""},null,null,{"$f":"IFERROR(INDEX(tblEvents[],SMALL(IF(Dates=F$21,ROW(Dates)),ROW(3:3))-TableRowStart,4),\"\")","v":""},null,null,{"$f":"IFERROR(INDEX(tblEvents[],SMALL(IF(Dates=I$21,ROW(Dates)),ROW(3:3))-TableRowStart,4),\"\")","v":""},null,null,{"$f":"IFERROR(INDEX(tblEvents[],SMALL(IF(Dates=L$21,ROW(Dates)),ROW(3:3))-TableRowStart,4),\"\")","v":""},null,null,{"$f":"IFERROR(INDEX(tblEvents[],SMALL(IF(Dates=O$21,ROW(Dates)),ROW(3:3))-TableRowStart,4),\"\")","v":""},null,null,{"$f":"IFERROR(INDEX(tblEvents[],SMALL(IF(Dates=R$21,ROW(Dates)),ROW(3:3))-TableRowStart,4),\"\")","v":""},null,null,{"$f":"IFERROR(INDEX(tblEvents[],SMALL(IF(Dates=U$21,ROW(Dates)),ROW(3:3))-TableRowStart,4),\"\")","v":""}]
[null,null,{"$f":"IFERROR(INDEX(tblEvents[],SMALL(IF(Dates=C$21,ROW(Dates)),ROW(#REF!))-TableRowStart,4),\"\")","v":""},null,null,{"$f":"IFERROR(INDEX(tblEvents[],SMALL(IF(Dates=F$21,ROW(Dates)),ROW(#REF!))-TableRowStart,4),\"\")","v":""},null,null,{"$f":"IFERROR(INDEX(tblEvents[],SMALL(IF(Dates=I$21,ROW(Dates)),ROW(#REF!))-TableRowStart,4),\"\")","v":""},null,null,{"$f":"IFERROR(INDEX(tblEvents[],SMALL(IF(Dates=L$21,ROW(Dates)),ROW(#REF!))-TableRowStart,4),\"\")","v":""},null,null,{"$f":"IFERROR(INDEX(tblEvents[],SMALL(IF(Dates=O$21,ROW(Dates)),ROW(#REF!))-TableRowStart,4),\"\")","v":""},null,null,{"$f":"IFERROR(INDEX(tblEvents[],SMALL(IF(Dates=R$21,ROW(Dates)),ROW(#REF!))-TableRowStart,4),\"\")","v":""},null,null,{"$f":"IFERROR(INDEX(tblEvents[],SMALL(IF(Dates=U$21,ROW(Dates)),ROW(#REF!))-TableRowStart,4),\"\")","v":""}]
[null,null,{"$f":"U21+1","v":"2016-07-25"},null,null,{"$f":"C26+1","v":"2016-07-26"},null,null,{"$f":"F26+1","v":"2016-07-27"},null,null,{"$f":"I26+1","v":"2016-07-28"},null,null,{"$f":"L26+1","v":"2016-07-29"},null,null,{"$f":"O26+1","v":"2016-07-30"},null,null,{"$f":"R26+1","v":"2016-07-31"}]
[null,null,{"$f":"IFERROR(INDEX(tblEvents[],SMALL(IF(Dates=C$26,ROW(Dates)),ROW(1:1))-TableRowStart,4),\"\")","v":""},null,null,{"$f":"IFERROR(INDEX(tblEvents[],SMALL(IF(Dates=F$26,ROW(Dates)),ROW(1:1))-TableRowStart,4),\"\")","v":"Kiertokävely kaupungilla"},null,null,{"$f":"IFERROR(INDEX(tblEvents[],SMALL(IF(Dates=I$26,ROW(Dates)),ROW(1:1))-TableRowStart,4),\"\")","v":""},null,null,{"$f":"IFERROR(INDEX(tblEvents[],SMALL(IF(Dates=L$26,ROW(Dates)),ROW(1:1))-TableRowStart,4),\"\")","v":""},null,null,{"$f":"IFERROR(INDEX(tblEvents[],SMALL(IF(Dates=O$26,ROW(Dates)),ROW(1:1))-TableRowStart,4),\"\")","v":"Kaupunginvaltuusto"},null,null,{"$f":"IFERROR(INDEX(tblEvents[],SMALL(IF(Dates=R$26,ROW(Dates)),ROW(1:1))-TableRowStart,4),\"\")","v":""},null,null,{"$f":"IFERROR(INDEX(tblEvents[],SMALL(IF(Dates=U$26,ROW(Dates)),ROW(1:1))-TableRowStart,4),\"\")","v":""}]
[null,null,{"$f":"IFERROR(INDEX(tblEvents[],SMALL(IF(Dates=C$26,ROW(Dates)),ROW(2:2))-TableRowStart,4),\"\")","v":""},null,null,{"$f":"IFERROR(INDEX(tblEvents[],SMALL(IF(Dates=F$26,ROW(Dates)),ROW(2:2))-TableRowStart,4),\"\")","v":"Pubikierros"},null,null,{"$f":"IFERROR(INDEX(tblEvents[],SMALL(IF(Dates=I$26,ROW(Dates)),ROW(2:2))-TableRowStart,4),\"\")","v":""},null,null,{"$f":"IFERROR(INDEX(tblEvents[],SMALL(IF(Dates=L$26,ROW(Dates)),ROW(2:2))-TableRowStart,4),\"\")","v":""},null,null,{"$f":"IFERROR(INDEX(tblEvents[],SMALL(IF(Dates=O$26,ROW(Dates)),ROW(2:2))-TableRowStart,4),\"\")","v":""},null,null,{"$f":"IFERROR(INDEX(tblEvents[],SMALL(IF(Dates=R$26,ROW(Dates)),ROW(2:2))-TableRowStart,4),\"\")","v":""},null,null,{"$f":"IFERROR(INDEX(tblEvents[],SMALL(IF(Dates=U$26,ROW(Dates)),ROW(2:2))-TableRowStart,4),\"\")","v":""}]
[null,null,{"$f":"IFERROR(INDEX(tblEvents[],SMALL(IF(Dates=C$26,ROW(Dates)),ROW(3:3))-TableRowStart,4),\"\")","v":""},null,null,{"$f":"IFERROR(INDEX(tblEvents[],SMALL(IF(Dates=F$26,ROW(Dates)),ROW(3:3))-TableRowStart,4),\"\")","v":""},null,null,{"$f":"IFERROR(INDEX(tblEvents[],SMALL(IF(Dates=I$26,ROW(Dates)),ROW(3:3))-TableRowStart,4),\"\")","v":""},null,null,{"$f":"IFERROR(INDEX(tblEvents[],SMALL(IF(Dates=L$26,ROW(Dates)),ROW(3:3))-TableRowStart,4),\"\")","v":""},null,null,{"$f":"IFERROR(INDEX(tblEvents[],SMALL(IF(Dates=O$26,ROW(Dates)),ROW(3:3))-TableRowStart,4),\"\")","v":""},null,null,{"$f":"IFERROR(INDEX(tblEvents[],SMALL(IF(Dates=R$26,ROW(Dates)),ROW(3:3))-TableRowStart,4),\"\")","v":""},null,null,{"$f":"IFERROR(INDEX(tblEvents[],SMALL(IF(Dates=U$26,ROW(Dates)),ROW(3:3))-TableRowStart,4),\"\")","v":""}]
[null,null,{"$f":"IFERROR(INDEX(tblEvents[],SMALL(IF(Dates=C$26,ROW(Dates)),ROW(#REF!))-TableRowStart,4),\"\")","v":""},null,null,{"$f":"IFERROR(INDEX(tblEvents[],SMALL(IF(Dates=F$26,ROW(Dates)),ROW(#REF!))-TableRowStart,4),\"\")","v":""},null,null,{"$f":"IFERROR(INDEX(tblEvents[],SMALL(IF(Dates=I$26,ROW(Dates)),ROW(#REF!))-TableRowStart,4),\"\")","v":""},null,null,{"$f":"IFERROR(INDEX(tblEvents[],SMALL(IF(Dates=L$26,ROW(Dates)),ROW(#REF!))-TableRowStart,4),\"\")","v":""},null,null,{"$f":"IFERROR(INDEX(tblEvents[],SMALL(IF(Dates=O$26,ROW(Dates)),ROW(#REF!))-TableRowStart,4),\"\")","v":""},null,null,{"$f":"IFERROR(INDEX(tblEvents[],SMALL(IF(Dates=R$26,ROW(Dates)),ROW(#REF!))-TableRowStart,4),\"\")","v":""},null,null,{"$f":"IFERROR(INDEX(tblEvents[],SMALL(IF(Dates=U$26,ROW(Dates)),ROW(#REF!))-TableRowStart,4),\"\")","v":""}]
[null,null,{"$f":"U26+1","v":"2016-08-01"},null,null,{"$f":"C31+1","v":"2016-08-02"},null,null,"MUISTIINPANOT:"]
[null,null,{"$f":"IFERROR(INDEX(tblEvents[],SMALL(IF(Dates=C$31,ROW(Dates)),ROW(1:1))-TableRowStart,4),\"\")","v":""},null,null,{"$f":"IFERROR(INDEX(tblEvents[],SMALL(IF(Dates=F$31,ROW(Dates)),ROW(1:1))-TableRowStart,4),\"\")","v":""}]
[null,null,{"$f":"IFERROR(INDEX(tblEvents[],SMALL(IF(Dates=C$31,ROW(Dates)),ROW(2:2))-TableRowStart,4),\"\")","v":""},null,null,{"$f":"IFERROR(INDEX(tblEvents[],SMALL(IF(Dates=F$31,ROW(Dates)),ROW(2:2))-TableRowStart,4),\"\")","v":""}]
[null,null,{"$f":"IFERROR(INDEX(tblEvents[],SMALL(IF(Dates=C$31,ROW(Dates)),ROW(3:3))-TableRowStart,4),\"\")","v":""},null,null,{"$f":"IFERROR(INDEX(tblEvents[],SMALL(IF(Dates=F$31,ROW(Dates)),ROW(3:3))-TableRowStart,4),\"\")","v":""}]
[null,null,{"$f":"IFERROR(INDEX(tblEvents[],SMALL(IF(Dates=C$31,ROW(Dates)),ROW(#REF!))-TableRowStart,4),\"\")","v":""},null,null,{"$f":"IFERROR(INDEX(tblEvents[],SMALL(IF(Dates=F$31,ROW(Dates)),ROW(#REF!))-TableRowStart,4),\"\")","v":""}]

{"sheet":"TULOSTETTAVA VERSIO","index":2,"n_rows":35,"n_cols":21,"rows_kept":35,"merged":[[1,5,1,11],[30,8,34,20]]}
[]
[null,null,{"$f":"ViewYear","v":2016},null,null,{"$f":"ViewMonth","v":"HEINÄKUU"},{"$f":"KALENTERI!G2","v":0},{"$f":"KALENTERI!H2","v":0},{"$f":"KALENTERI!I2","v":0},{"$f":"KALENTERI!J2","v":0},{"$f":"KALENTERI!K2","v":0},{"$f":"KALENTERI!L2","v":0}]
[]
[null,null,"MA",null,null,"TI",null,null,"KE",null,null,"TO",null,null,"PE",null,null,"LA",null,null,"SU"]
[]
[null,null,{"$f":"KALENTERI!C6","v":"2016-06-27"},{"$f":"KALENTERI!D6","v":0},{"$f":"KALENTERI!E6","v":0},{"$f":"KALENTERI!F6","v":"2016-06-28"},{"$f":"KALENTERI!G6","v":0},{"$f":"KALENTERI!H6","v":0},{"$f":"KALENTERI!I6","v":"2016-06-29"},{"$f":"KALENTERI!J6","v":0},{"$f":"KALENTERI!K6","v":0},{"$f":"KALENTERI!L6","v":"2016-06-30"},{"$f":"KALENTERI!M6","v":0},{"$f":"KALENTERI!N6","v":0},{"$f":"KALENTERI!O6","v":"2016-07-01"},{"$f":"KALENTERI!P6","v":0},{"$f":"KALENTERI!Q6","v":0},{"$f":"KALENTERI!R6","v":"2016-07-02"},{"$f":"KALENTERI!S6","v":0},{"$f":"KALENTERI!T6","v":0},{"$f":"KALENTERI!U6","v":"2016-07-03"}]
[null,null,{"$f":"KALENTERI!C7","v":""},{"$f":"KALENTERI!D7","v":0},{"$f":"KALENTERI!E7","v":0},{"$f":"KALENTERI!F7","v":""},{"$f":"KALENTERI!G7","v":0},{"$f":"KALENTERI!H7","v":0},{"$f":"KALENTERI!I7","v":""},{"$f":"KALENTERI!J7","v":0},{"$f":"KALENTERI!K7","v":0},{"$f":"KALENTERI!L7","v":""},{"$f":"KALENTERI!M7","v":0},{"$f":"KALENTERI!N7","v":0},{"$f":"KALENTERI!O7","v":"Puutarhajuhla"},{"$f":"KALENTERI!P7","v":0},{"$f":"KALENTERI!Q7","v":0},{"$f":"KALENTERI!R7","v":"Puutarhajuhla"},{"$f":"KALENTERI!S7","v":0},{"$f":"KALENTERI!T7","v":0},{"$f":"KALENTERI!U7","v":"Elokuvailta puistossa"}]
[null,null,{"$f":"KALENTERI!C8","v":""},{"$f":"KALENTERI!D8","v":"00:00:00"},{"$f":"KALENTERI!E8","v":"00:00:00"},{"$f":"KALENTERI!F8","v":""},{"$f":"KALENTERI!G8","v":"00:00:00"},{"$f":"KALENTERI!H8","v":"00:00:00"},{"$f":"KALENTERI!I8","v":""},{"$f":"KALENTERI!J8","v":"00:00:00"},{"$f":"KALENTERI!K8","v":"00:00:00"},{"$f":"KALENTERI!L8","v":""},{"$f":"KALENTERI!M8","v":"00:00:00"},{"$f":"KALENTERI!N8","v":"00:00:00"},{"$f":"KALENTERI!O8","v":"Kaupunginvaltuusto"},{"$f":"KALENTERI!P8","v":"00:00:00"},{"$f":"KALENTERI!Q8","v":"00:00:00"},{"$f":"KALENTERI!R8","v":""},{"$f":"KALENTERI!S8","v":"00:00:00"},{"$f":"KALENTERI!T8","v":"00:00:00"},{"$f":"KALENTERI!U8","v":""}]
[null,null,{"$f":"KALENTERI!C9","v":""},{"$f":"KALENTERI!D9","v":0},{"$f":"KALENTERI!E9","v":0},{"$f":"KALENTERI!F9","v":""},{"$f":"KALENTERI!G9","v":0},{"$f":"KALENTERI!H9","v":0},{"$f":"KALENTERI!I9","v":""},{"$f":"KALENTERI!J9","v":0},{"$f":"KALENTERI!K9","v":0},{"$f":"KALENTERI!L9","v":""},{"$f":"KALENTERI!M9","v":0},{"$f":"KALENTERI!N9","v":0},{"$f":"KALENTERI!O9","v":""},{"$f":"KALENTERI!P9","v":0},{"$f":"KALENTERI!Q9","v":0},{"$f":"KALENTERI!R9","v":""},{"$f":"KALENTERI!S9","v":0},{"$f":"KALENTERI!T9","v":0},{"$f":"KALENTERI!U9","v":""}]
[null,null,{"$f":"KALENTERI!C10","v":""},{"$f":"KALENTERI!D10","v":0},{"$f":"KALENTERI!E10","v":0},{"$f":"KALENTERI!F10","v":""},{"$f":"KALENTERI!G10","v":0},{"$f":"KALENTERI!H10","v":0},{"$f":"KALENTERI!I10","v":""},{"$f":"KALENTERI!J10","v":0},{"$f":"KALENTERI!K10","v":0},{"$f":"KALENTERI!L10","v":""},{"$f":"KALENTERI!M10","v":0},{"$f":"KALENTERI!N10","v":0},{"$f":"KALENTERI!O10","v":""},{"$f":"KALENTERI!P10","v":0},{"$f":"KALENTERI!Q10","v":0},{"$f":"KALENTERI!R10","v":""},{"$f":"KALENTERI!S10","v":0},{"$f":"KALENTERI!T10","v":0},{"$f":"KALENTERI!U10","v":""}]
[null,null,{"$f":"KALENTERI!C11","v":"2016-07-04"},{"$f":"KALENTERI!D11","v":0},{"$f":"KALENTERI!E11","v":0},{"$f":"KALENTERI!F11","v":"2016-07-05"},{"$f":"KALENTERI!G11","v":0},{"$f":"KALENTERI!H11","v":0},{"$f":"KALENTERI!I11","v":"2016-07-06"},{"$f":"KALENTERI!J11","v":0},{"$f":"KALENTERI!K11","v":0},{"$f":"KALENTERI!L11","v":"2016-07-07"},{"$f":"KALENTERI!M11","v":0},{"$f":"KALENTERI!N11","v":0},{"$f":"KALENTERI!O11","v":"2016-07-08"},{"$f":"KALENTERI!P11","v":0},{"$f":"KALENTERI!Q11","v":0},{"$f":"KALENTERI!R11","v":"2016-07-09"},{"$f":"KALENTERI!S11","v":0},{"$f":"KALENTERI!T11","v":0},{"$f":"KALENTERI!U11","v":"2016-07-10"}]
[null,null,{"$f":"KALENTERI!C12","v":""},{"$f":"KALENTERI!D12","v":0},{"$f":"KALENTERI!E12","v":0},{"$f":"KALENTERI!F12","v":""},{"$f":"KALENTERI!G12","v":0},{"$f":"KALENTERI!H12","v":0},{"$f":"KALENTERI!I12","v":""},{"$f":"KALENTERI!J12","v":0},{"$f":"KALENTERI!K12","v":0},{"$f":"KALENTERI!L12","v":""},{"$f":"KALENTERI!M12","v":0},{"$f":"KALENTERI!N12","v":0},{"$f":"KALENTERI!O12","v":"Kaupunginvaltuusto"},{"$f":"KALENTERI!P12","v":0},{"$f":"KALENTERI!Q12","v":0},{"$f":"KALENTERI!R12","v":""},{"$f":"KALENTERI!S12","v":0},{"$f":"KALENTERI!T12","v":0},{"$f":"KALENTERI!U12","v":""}]
[null,null,{"$f":"KALENTERI!C13","v":""},{"$f":"KALENTERI!D13","v":0},{"$f":"KALENTERI!E13","v":0},{"$f":"KALENTERI!F13","v":""},{"$f":"KALENTERI!G13","v":0},{"$f":"KALENTERI!H13","v":0},{"$f":"KALENTERI!I13","v":""},{"$f":"KALENTERI!J13","v":0},{"$f":"KALENTERI!K13","v":0},{"$f":"KALENTERI!L13","v":""},{"$f":"KALENTERI!M13","v":0},{"$f":"KALENTERI!N13","v":0},{"$f":"KALENTERI!O13","v":""},{"$f":"KALENTERI!P13","v":0},{"$f":"KALENTERI!Q13","v":0},{"$f":"KALENTERI!R13","v":""},{"$f":"KALENTERI!S13","v":0},{"$f":"KALENTERI!T13","v":0},{"$f":"KALENTERI!U13","v":""}]
[null,null,{"$f":"KALENTERI!C14","v":""},{"$f":"KALENTERI!D14","v":0},{"$f":"KALENTERI!E14","v":0},{"$f":"KALENTERI!F14","v":""},{"$f":"KALENTERI!G14","v":0},{"$f":"KALENTERI!H14","v":0},{"$f":"KALENTERI!I14","v":""},{"$f":"KALENTERI!J14","v":0},{"$f":"KALENTERI!K14","v":0},{"$f":"KALENTERI!L14","v":""},{"$f":"KALENTERI!M14","v":0},{"$f":"KALENTERI!N14","v":0},{"$f":"KALENTERI!O14","v":""},{"$f":"KALENTERI!P14","v":0},{"$f":"KALENTERI!Q14","v":0},{"$f":"KALENTERI!R14","v":""},{"$f":"KALENTERI!S14","v":0},{"$f":"KALENTERI!T14","v":0},{"$f":"KALENTERI!U14","v":""}]
[null,null,{"$f":"KALENTERI!C15","v":""},{"$f":"KALENTERI!D15","v":0},{"$f":"KALENTERI!E15","v":0},{"$f":"KALENTERI!F15","v":""},{"$f":"KALENTERI!G15","v":0},{"$f":"KALENTERI!H15","v":0},{"$f":"KALENTERI!I15","v":""},{"$f":"KALENTERI!J15","v":0},{"$f":"KALENTERI!K15","v":0},{"$f":"KALENTERI!L15","v":""},{"$f":"KALENTERI!M15","v":0},{"$f":"KALENTERI!N15","v":0},{"$f":"KALENTERI!O15","v":""},{"$f":"KALENTERI!P15","v":0},{"$f":"KALENTERI!Q15","v":0},{"$f":"KALENTERI!R15","v":""},{"$f":"KALENTERI!S15","v":0},{"$f":"KALENTERI!T15","v":0},{"$f":"KALENTERI!U15","v":""}]
[null,null,{"$f":"KALENTERI!C16","v":"2016-07-11"},{"$f":"KALENTERI!D16","v":0},{"$f":"KALENTERI!E16","v":0},{"$f":"KALENTERI!F16","v":"2016-07-12"},{"$f":"KALENTERI!G16","v":0},{"$f":"KALENTERI!H16","v":0},{"$f":"KALENTERI!I16","v":"2016-07-13"},{"$f":"KALENTERI!J16","v":0},{"$f":"KALENTERI!K16","v":0},{"$f":"KALENTERI!L16","v":"2016-07-14"},{"$f":"KALENTERI!M16","v":0},{"$f":"KALENTERI!N16","v":0},{"$f":"KALENTERI!O16","v":"2016-07-15"},{"$f":"KALENTERI!P16","v":0},{"$f":"KALENTERI!Q16","v":0},{"$f":"KALENTERI!R16","v":"2016-07-16"},{"$f":"KALENTERI!S16","v":0},{"$f":"KALENTERI!T16","v":0},{"$f":"KALENTERI!U16","v":"2016-07-17"}]
[null,null,{"$f":"KALENTERI!C17","v":"Kauppakamari Lounastilaisuus"},{"$f":"KALENTERI!D17","v":0},{"$f":"KALENTERI!E17","v":0},{"$f":"KALENTERI!F17","v":"Antiikkinäyttely"},{"$f":"KALENTERI!G17","v":0},{"$f":"KALENTERI!H17","v":0},{"$f":"KALENTERI!I17","v":""},{"$f":"KALENTERI!J17","v":0},{"$f":"KALENTERI!K17","v":0},{"$f":"KALENTERI!L17","v":"Kunnan työpaja"},{"$f":"KALENTERI!M17","v":0},{"$f":"KALENTERI!N17","v":0},{"$f":"KALENTERI!O17","v":"Kaupunginvaltuusto"},{"$f":"KALENTERI!P17","v":0},{"$f":"KALENTERI!Q17","v":0},{"$f":"KALENTERI!R17","v":""},{"$f":"KALENTERI!S17","v":0},{"$f":"KALENTERI!T17","v":0},{"$f":"KALENTERI!U17","v":""}]
[null,null,{"$f":"KALENTERI!C18","v":""},{"$f":"KALENTERI!D18","v":0},{"$f":"KALENTERI!E18","v":0},{"$f":"KALENTERI!F18","v":""},{"$f":"KALENTERI!G18","v":0},{"$f":"KALENTERI!H18","v":0},{"$f":"KALENTERI!I18","v":""},{"$f":"KALENTERI!J18","v":0},{"$f":"KALENTERI!K18","v":0},{"$f":"KALENTERI!L18","v":""},{"$f":"KALENTERI!M18","v":0},{"$f":"KALENTERI!N18","v":0},{"$f":"KALENTERI!O18","v":""},{"$f":"KALENTERI!P18","v":0},{"$f":"KALENTERI!Q18","v":0},{"$f":"KALENTERI!R18","v":""},{"$f":"KALENTERI!S18","v":0},{"$f":"KALENTERI!T18","v":0},{"$f":"KALENTERI!U18","v":""}]
[null,null,{"$f":"KALENTERI!C19","v":""},{"$f":"KALENTERI!D19","v":0},{"$f":"KALENTERI!E19","v":0},{"$f":"KALENTERI!F19","v":""},{"$f":"KALENTERI!G19","v":0},{"$f":"KALENTERI!H19","v":0},{"$f":"KALENTERI!I19","v":""},{"$f":"KALENTERI!J19","v":0},{"$f":"KALENTERI!K19","v":0},{"$f":"KALENTERI!L19","v":""},{"$f":"KALENTERI!M19","v":0},{"$f":"KALENTERI!N19","v":0},{"$f":"KALENTERI!O19","v":""},{"$f":"KALENTERI!P19","v":0},{"$f":"KALENTERI!Q19","v":0},{"$f":"KALENTERI!R19","v":""},{"$f":"KALENTERI!S19","v":0},{"$f":"KALENTERI!T19","v":0},{"$f":"KALENTERI!U19","v":""}]
[null,null,{"$f":"KALENTERI!C20","v":""},{"$f":"KALENTERI!D20","v":0},{"$f":"KALENTERI!E20","v":0},{"$f":"KALENTERI!F20","v":""},{"$f":"KALENTERI!G20","v":0},{"$f":"KALENTERI!H20","v":0},{"$f":"KALENTERI!I20","v":""},{"$f":"KALENTERI!J20","v":0},{"$f":"KALENTERI!K20","v":0},{"$f":"KALENTERI!L20","v":""},{"$f":"KALENTERI!M20","v":0},{"$f":"KALENTERI!N20","v":0},{"$f":"KALENTERI!O20","v":""},{"$f":"KALENTERI!P20","v":0},{"$f":"KALENTERI!Q20","v":0},{"$f":"KALENTERI!R20","v":""},{"$f":"KALENTERI!S20","v":0},{"$f":"KALENTERI!T20","v":0},{"$f":"KALENTERI!U20","v":""}]
[null,null,{"$f":"KALENTERI!C21","v":"2016-07-18"},{"$f":"KALENTERI!D21","v":0},{"$f":"KALENTERI!E21","v":0},{"$f":"KALENTERI!F21","v":"2016-07-19"},{"$f":"KALENTERI!G21","v":0},{"$f":"KALENTERI!H21","v":0},{"$f":"KALENTERI!I21","v":"2016-07-20"},{"$f":"KALENTERI!J21","v":0},{"$f":"KALENTERI!K21","v":0},{"$f":"KALENTERI!L21","v":"2016-07-21"},{"$f":"KALENTERI!M21","v":0},{"$f":"KALENTERI!N21","v":0},{"$f":"KALENTERI!O21","v":"2016-07-22"},{"$f":"KALENTERI!P21","v":0},{"$f":"KALENTERI!Q21","v":0},{"$f":"KALENTERI!R21","v":"2016-07-23"},{"$f":"KALENTERI!S21","v":0},{"$f":"KALENTERI!T21","v":0},{"$f":"KALENTERI!U21","v":"2016-07-24"}]
[null,null,{"$f":"KALENTERI!C22","v":""},{"$f":"KALENTERI!D22","v":0},{"$f":"KALENTERI!E22","v":0},{"$f":"KALENTERI!F22","v":"Strategisen suunnittelun työpaja"},{"$f":"KALENTERI!G22","v":0},{"$f":"KALENTERI!H22","v":0},{"$f":"KALENTERI!I22","v":"Puistosiivous"},{"$f":"KALENTERI!J22","v":0},{"$f":"KALENTERI!K22","v":0},{"$f":"KALENTERI!L22","v":""},{"$f":"KALENTERI!M22","v":0},{"$f":"KALENTERI!N22","v":0},{"$f":"KALENTERI!O22","v":"Kaupunginvaltuusto"},{"$f":"KALENTERI!P22","v":0},{"$f":"KALENTERI!Q22","v":0},{"$f":"KALENTERI!R22","v":""},{"$f":"KALENTERI!S22","v":0},{"$f":"KALENTERI!T22","v":0},{"$f":"KALENTERI!U22","v":""}]
[null,null,{"$f":"KALENTERI!C23","v":""},{"$f":"KALENTERI!D23","v":0},{"$f":"KALENTERI!E23","v":0},{"$f":"KALENTERI!F23","v":""},{"$f":"KALENTERI!G23","v":0},{"$f":"KALENTERI!H23","v":0},{"$f":"KALENTERI!I23","v":""},{"$f":"KALENTERI!J23","v":0},{"$f":"KALENTERI!K23","v":0},{"$f":"KALENTERI!L23","v":""},{"$f":"KALENTERI!M23","v":0},{"$f":"KALENTERI!N23","v":0},{"$f":"KALENTERI!O23","v":""},{"$f":"KALENTERI!P23","v":0},{"$f":"KALENTERI!Q23","v":0},{"$f":"KALENTERI!R23","v":""},{"$f":"KALENTERI!S23","v":0},{"$f":"KALENTERI!T23","v":0},{"$f":"KALENTERI!U23","v":""}]
[null,null,{"$f":"KALENTERI!C24","v":""},{"$f":"KALENTERI!D24","v":0},{"$f":"KALENTERI!E24","v":0},{"$f":"KALENTERI!F24","v":""},{"$f":"KALENTERI!G24","v":0},{"$f":"KALENTERI!H24","v":0},{"$f":"KALENTERI!I24","v":""},{"$f":"KALENTERI!J24","v":0},{"$f":"KALENTERI!K24","v":0},{"$f":"KALENTERI!L24","v":""},{"$f":"KALENTERI!M24","v":0},{"$f":"KALENTERI!N24","v":0},{"$f":"KALENTERI!O24","v":""},{"$f":"KALENTERI!P24","v":0},{"$f":"KALENTERI!Q24","v":0},{"$f":"KALENTERI!R24","v":""},{"$f":"KALENTERI!S24","v":0},{"$f":"KALENTERI!T24","v":0},{"$f":"KALENTERI!U24","v":""}]
[null,null,{"$f":"KALENTERI!C25","v":""},{"$f":"KALENTERI!D25","v":0},{"$f":"KALENTERI!E25","v":0},{"$f":"KALENTERI!F25","v":""},{"$f":"KALENTERI!G25","v":0},{"$f":"KALENTERI!H25","v":0},{"$f":"KALENTERI!I25","v":""},{"$f":"KALENTERI!J25","v":0},{"$f":"KALENTERI!K25","v":0},{"$f":"KALENTERI!L25","v":""},{"$f":"KALENTERI!M25","v":0},{"$f":"KALENTERI!N25","v":0},{"$f":"KALENTERI!O25","v":""},{"$f":"KALENTERI!P25","v":0},{"$f":"KALENTERI!Q25","v":0},{"$f":"KALENTERI!R25","v":""},{"$f":"KALENTERI!S25","v":0},{"$f":"KALENTERI!T25","v":0},{"$f":"KALENTERI!U25","v":""}]
[null,null,{"$f":"KALENTERI!C26","v":"2016-07-25"},{"$f":"KALENTERI!D26","v":0},{"$f":"KALENTERI!E26","v":0},{"$f":"KALENTERI!F26","v":"2016-07-26"},{"$f":"KALENTERI!G26","v":0},{"$f":"KALENTERI!H26","v":0},{"$f":"KALENTERI!I26","v":"2016-07-27"},{"$f":"KALENTERI!J26","v":0},{"$f":"KALENTERI!K26","v":0},{"$f":"KALENTERI!L26","v":"2016-07-28"},{"$f":"KALENTERI!M26","v":0},{"$f":"KALENTERI!N26","v":0},{"$f":"KALENTERI!O26","v":"2016-07-29"},{"$f":"KALENTERI!P26","v":0},{"$f":"KALENTERI!Q26","v":0},{"$f":"KALENTERI!R26","v":"2016-07-30"},{"$f":"KALENTERI!S26","v":0},{"$f":"KALENTERI!T26","v":0},{"$f":"KALENTERI!U26","v":"2016-07-31"}]
[null,null,{"$f":"KALENTERI!C27","v":""},{"$f":"KALENTERI!D27","v":0},{"$f":"KALENTERI!E27","v":0},{"$f":"KALENTERI!F27","v":"Kiertokävely kaupungilla"},{"$f":"KALENTERI!G27","v":0},{"$f":"KALENTERI!H27","v":0},{"$f":"KALENTERI!I27","v":""},{"$f":"KALENTERI!J27","v":0},{"$f":"KALENTERI!K27","v":0},{"$f":"KALENTERI!L27","v":""},{"$f":"KALENTERI!M27","v":0},{"$f":"KALENTERI!N27","v":0},{"$f":"KALENTERI!O27","v":"Kaupunginvaltuusto"},{"$f":"KALENTERI!P27","v":0},{"$f":"KALENTERI!Q27","v":0},{"$f":"KALENTERI!R27","v":""},{"$f":"KALENTERI!S27","v":0},{"$f":"KALENTERI!T27","v":0},{"$f":"KALENTERI!U27","v":""}]
[null,null,{"$f":"KALENTERI!C28","v":""},{"$f":"KALENTERI!D28","v":0},{"$f":"KALENTERI!E28","v":0},{"$f":"KALENTERI!F28","v":"Pubikierros"},{"$f":"KALENTERI!G28","v":0},{"$f":"KALENTERI!H28","v":0},{"$f":"KALENTERI!I28","v":""},{"$f":"KALENTERI!J28","v":0},{"$f":"KALENTERI!K28","v":0},{"$f":"KALENTERI!L28","v":""},{"$f":"KALENTERI!M28","v":0},{"$f":"KALENTERI!N28","v":0},{"$f":"KALENTERI!O28","v":""},{"$f":"KALENTERI!P28","v":0},{"$f":"KALENTERI!Q28","v":0},{"$f":"KALENTERI!R28","v":""},{"$f":"KALENTERI!S28","v":0},{"$f":"KALENTERI!T28","v":0},{"$f":"KALENTERI!U28","v":""}]
[null,null,{"$f":"KALENTERI!C29","v":""},{"$f":"KALENTERI!D29","v":0},{"$f":"KALENTERI!E29","v":0},{"$f":"KALENTERI!F29","v":""},{"$f":"KALENTERI!G29","v":0},{"$f":"KALENTERI!H29","v":0},{"$f":"KALENTERI!I29","v":""},{"$f":"KALENTERI!J29","v":0},{"$f":"KALENTERI!K29","v":0},{"$f":"KALENTERI!L29","v":""},{"$f":"KALENTERI!M29","v":0},{"$f":"KALENTERI!N29","v":0},{"$f":"KALENTERI!O29","v":""},{"$f":"KALENTERI!P29","v":0},{"$f":"KALENTERI!Q29","v":0},{"$f":"KALENTERI!R29","v":""},{"$f":"KALENTERI!S29","v":0},{"$f":"KALENTERI!T29","v":0},{"$f":"KALENTERI!U29","v":""}]
[null,null,{"$f":"KALENTERI!C30","v":""},{"$f":"KALENTERI!D30","v":0},{"$f":"KALENTERI!E30","v":0},{"$f":"KALENTERI!F30","v":""},{"$f":"KALENTERI!G30","v":0},{"$f":"KALENTERI!H30","v":0},{"$f":"KALENTERI!I30","v":""},{"$f":"KALENTERI!J30","v":0},{"$f":"KALENTERI!K30","v":0},{"$f":"KALENTERI!L30","v":""},{"$f":"KALENTERI!M30","v":0},{"$f":"KALENTERI!N30","v":0},{"$f":"KALENTERI!O30","v":""},{"$f":"KALENTERI!P30","v":0},{"$f":"KALENTERI!Q30","v":0},{"$f":"KALENTERI!R30","v":""},{"$f":"KALENTERI!S30","v":0},{"$f":"KALENTERI!T30","v":0},{"$f":"KALENTERI!U30","v":""}]
[null,null,{"$f":"KALENTERI!C31","v":"2016-08-01"},{"$f":"KALENTERI!D31","v":0},{"$f":"KALENTERI!E31","v":0},{"$f":"KALENTERI!F31","v":"2016-08-02"},null,null,{"$f":"KALENTERI!I31","v":"MUISTIINPANOT:"}]
[null,null,{"$f":"KALENTERI!C32","v":""},{"$f":"KALENTERI!D32","v":0},{"$f":"KALENTERI!E32","v":0},{"$f":"KALENTERI!F32","v":""}]
[null,null,{"$f":"KALENTERI!C33","v":""},{"$f":"KALENTERI!D33","v":0},{"$f":"KALENTERI!E33","v":0},{"$f":"KALENTERI!F33","v":""}]
[null,null,{"$f":"KALENTERI!C34","v":""},{"$f":"KALENTERI!D34","v":0},{"$f":"KALENTERI!E34","v":0},{"$f":"KALENTERI!F34","v":""}]
[null,null,{"$f":"KALENTERI!C35","v":""},{"$f":"KALENTERI!D35","v":0},{"$f":"KALENTERI!E35","v":0},{"$f":"KALENTERI!F35","v":""}]

{"sheet":"HALLINTA","index":3,"n_rows":14,"n_cols":3,"rows_kept":14,"hidden":true}
[]
[null,"KUUKAUSI","NUMERO"]
[null,"TAMMIKUU",1]
[null,"HELMIKUU",2]
[null,"MAALISKUU",3]
[null,"HUHTIKUU",4]
[null,"TOUKOKUU",5]
[null,"KESÄKUU",6]
[null,"HEINÄKUU",7]
[null,"ELOKUU",8]
[null,"SYYSKUU",9]
[null,"LOKAKUU",10]
[null,"MARRASKUU",11]
[null,"JOULUKUU",12]